Cogmind - Beta 12 @@@ ROGUE MODE // 2023.12.30 @ 14:01:11 Player: didyousaycookie Result: Self-destructed Performance ------------- Evolutions (1) 500 Regions Visited (2) 400 Robots Destroyed (19) 95 Value Destroyed (427) 427 Prototype IDs (0) 0 Alien Tech Used (0) 0 Bonus (0) 0 TOTAL SCORE: 1422 Bonus ------- None Cogmind --------- Core Integrity 273/400 Matter 272/300 Energy 160/160 System Corruption 0% Temperature Cool (0) Movement Core (450) Ox8 Location -9/Materials Parts ------- > --- POWER (1) -------- Light Nuclear Core > --- PROPULSION (3) --- (None) > --- UTILITY (3) ------ Improved Heat Sink Large Storage Unit > --- WEAPON (2) ------- Small Laser > --- INVENTORY (15) --- Light Ion Engine Light Ion Engine Light Treads Light Treads Aluminum Leg Aluminum Leg Aluminum Leg Grenade Launcher Peak State ------------ > --- POWER ------------ Light Nuclear Core > --- PROPULSION ------- Aluminum Leg Aluminum Leg Aluminum Leg > --- UTILITY ---------- Improved Heat Sink Large Storage Unit Light Armor Plating > --- WEAPON ----------- Small Laser Light Assault Rifle > --- INVENTORY -------- Light Ion Engine Light Ion Engine Light Treads Light Treads Aluminum Leg Aluminum Leg Aluminum Leg Grenade Launcher [Rating: 13] Favorites ----------- Power Light Ion Engine Engine Light Ion Engine Power Core Light Nuclear Core Propulsion Aluminum Leg Leg Aluminum Leg Utility Small Storage Unit Device Improved Heat Sink Storage Small Storage Unit Processor Targeting Computer Protection Light Armor Plating Weapon Light Assault Rifle Energy Gun Medium Laser Ballistic Gun Light Assault Rifle Launcher Grenade Launcher Build | -11 -10 -9 ------- Run | Jun Mat Mat Slots Evolved 2 | . . 2 Power . | . . . Propulsion 1 | . . 1 Utility 1 | . . 1 Weapon . | . . . Parts Attached 24 | 7 9 8 Power 5 | 1 3 1 Engine 4 | 1 3 . Core 1 | . . 1 Reactor . | . . . Propulsion 7 | 2 2 3 Treads . | . . . Leg 7 | 2 2 3 Wheel . | . . . Hover . | . . . Flight . | . . . Utility 6 | 1 3 2 Device 1 | . . 1 Storage 3 | 1 1 1 Processor 1 | . 1 . Hackware . | . . . Protection 1 | . 1 . Artifact . | . . . Weapon 6 | 3 1 2 Energy Gun 4 | 2 1 1 Energy Cannon . | . . . Ballistic Gun 1 | 1 . . Ballistic Cannon . | . . . Launcher 1 | . . 1 Special Weapon . | . . . Impact Weapon . | . . . Slashing Weapon . | . . . Piercing Weapon . | . . . Special Melee Weapon . | . . . Unidentified Prototypes . | . . . Parts Lost 10 | . 3 7 Power 1 | . . 1 Propulsion 4 | . 1 3 Utility 2 | . 1 1 Weapon 3 | . 1 2 Highest Loss Streak 5 | . 2 5 To Critical Strikes . | . . . Average Slot Usage (%) 94 | . 97 87 Engine 11 | . 14 7 Leg 29 | . 28 32 Storage 12 | . 14 11 Processor 5 | . 8 . Protection 5 | . 2 10 Energy Gun 12 | . 14 10 Ballistic Gun 12 | . 14 11 Naked Turns . | . . . Heaviest Build 30 | 11 19 30 Greatest Support 30 | 20 20 30 Greatest Overweight (x) . | . . . Average Overweight (x) . | . . . Largest Inventory Capacity 15 | 8 10 15 Average Capacity 10 | 7 8 14 Most Carried 10 | 5 10 9 Average Carried 6 | 2 6 7 Final Capacity 15 | 8 10 15 Final Carried 9 | 4 9 8 Class Distribution -------------------- 95% | Mutant 4% | Scavenger-Mutant Dominant Class ---------------- Mutant | -10/Materials Mutant | -9/Materials Resources | -11 -10 -9 ----------- Run | Jun Mat Mat Matter Collected 444 | 269 117 58 Remotely . | . . . Salvage Created 581 | 61 315 205 Parts 40 | 2 22 16 Haulers Intercepted . | . . . Recyclers Shooed 1 | . 1 . Parts Field Recycled . | . . . Retrieved Matter . | . . . Parts Self-Destructed . | . . . Prevented . | . . . Kills | -11 -10 -9 ------- Run | Jun Mat Mat Combat Hostiles Destroyed 16 | . 9 7 Guns 13 | . 9 4 AOE 3 | . . 3 Classes Destroyed 6 | 1 3 2 Builder 1 | . . 1 Recycler 1 | 1 . . Watcher 1 | . 1 . Swarmer 7 | . 3 4 Grunt 8 | . 6 2 Sentry 1 | . . 1 Best Kill Streak 5 | 1 3 5 Combat Bots Only 4 | . 3 4 Max Kills in Single Turn 3 | 1 1 3 Gunslinging . | . . . Exploded 3 | . . 3 Melee . | . . . Uniques/NPCs Destroyed . | . . . Combat | -11 -10 -9 -------- Run | Jun Mat Mat Damage Taken 1059 | . 497 562 Core 227 | . 100 127 Absorbed by Shields . | . . . Core Remaining (%) 80 | 100 60 . Volleys Fired 70 | 1 40 29 Largest 2 | 2 2 2 Hottest 70 | 70 70 60 Shots Fired 139 | 2 80 57 Gun 138 | 2 80 56 Cannon . | . . . Launcher 1 | . . 1 Special . | . . . Kinetic 69 | 1 40 28 Thermal 47 | 1 22 24 Explosive 1 | . . 1 Electromagnetic 22 | . 18 4 Robot Hit Streak 26 | 2 7 26 Robot Miss Streak 3 | . 3 2 Penetration Max . | . . . Secondary Targets 2 | . 2 . Max Gunslinging Chain 1 | . 1 . Shots Hit Robots 92 | 2 53 37 Core Hits 32 | 2 18 12 Critical Kills . | . . . Critical Parts Destroyed 1 | . 1 . Critical Strikes 3 | . 3 . Burn 2 | . 2 . Destroy 1 | . 1 . Melee Attacks . | . . . Impact . | . . . Slashing . | . . . Piercing . | . . . Sneak Attacks . | . . . Combat Hostiles . | . . . Follow-up Attacks . | . . . Damage Inflicted 1122 | 20 552 550 Guns 948 | 20 552 376 Cannons . | . . . Explosions 174 | . . 174 Melee . | . . . Ramming . | . . . Kinetic 387 | 8 222 157 Thermal 369 | 12 173 184 Explosive 174 | . . 174 Electromagnetic 192 | . 157 35 Impact . | . . . Slashing . | . . . Piercing . | . . . Highest Corruption . | . . . Average Corruption . | . . . Corruption Purged . | . . . Corruption Blocked . | . . . Overload Shots . | . . . Overflow Damage . | . . . Projectiles . | . . . Explosions . | . . . Melee . | . . . Knockbacks . | . . . Impact . | . . . Kinetic . | . . . Secondary . | . . . Self-Inflicted Damage 31 | . . 31 Shots 1 | . . 1 Rammed . | . . . Targets Rammed . | . . . Kicked . | . . . Crushed . | . . . Highest Temperature 315 | 30 315 60 Average Temperature 91 | 18 114 18 Received Heat Transfer 399 | . 264 135 Effects 2 | . 2 . Energy Bleed 2 | . 2 . Siege Activations . | . . . Robots Corrupted . | . . . Combat Hostiles . | . . . Parts Fried . | . . . Impact Corruptions . | . . . Robots Melted . | . . . Combat Hostiles . | . . . Parts Melted 2 | . 1 1 Heat Transferred 1128 | 37 666 425 Parts Sabotaged . | . . . Parts Stolen . | . . . Parts Stripped . | . . . Power Chain Reactions . | . . . Missiles Intercepted . | . . . Alert | -11 -10 -9 ------- Run | Jun Mat Mat Peak Influence 251 | 5 150 251 Initial 63 | . 3 63 Average 90 | 1 73 144 Maximum Alert Level 1 | . . 1 Low Security (%) 89 | 100 100 65 Level 1 10 | . . 34 Level 2 . | . . . Level 3 . | . . . Level 4 . | . . . Level 5 . | . . . High Security . | . . . Max Security . | . . . Squads Dispatched 3 | . 2 1 Investigation 2 | . 1 1 Extermination . | . . . Reinforcement 1 | . 1 . Assault . | . . . Garrison . | . . . Intercept . | . . . Searches Triggered . | . . . Construction Impeded . | . . . Haulers Reinforced . | . . . Active Scanning Responses . | . . . Cargo Convoy Interrupts . | . . . Stealth | -11 -10 -9 --------- Run | Jun Mat Mat Distress Signals 3 | . 2 1 Communications Jammed . | . . . Distress Signals . | . . . Times Spotted 29 | . 16 13 Peak Tracking Total 5 | . 3 5 Tactical Retreats 4 | . 2 2 Traps | -11 -10 -9 ------- Run | Jun Mat Mat Traps Triggered 1 | . 1 . Indirectly . | . . . Trap Hack Attempts . | . . . Triggered . | . . . Disarmed . | . . . Reprogrammed . | . . . Reused . | . . . Traps Extracted . | . . . Installed . | . . . Triggered . | . . . Machines | -11 -10 -9 ---------- Run | Jun Mat Mat Machines Disabled . | . . . Max in Single Turn . | . . . Machines Repaired . | . . . Machines Sabotaged . | . . . Overloaded Fab Kills . | . . . Hacking | -11 -10 -9 --------- Run | Jun Mat Mat Machines Accessed 5 | . 2 3 Terminals 5 | . 2 3 Fabricators . | . . . Repair Stations . | . . . Recycling Units . | . . . Scanalyzers . | . . . Garrison Access . | . . . Total Hacks 17 | . 5 12 Successful 8 | . . 8 Failed 9 | . 5 4 Catastrophic 1 | . 1 . Database Lockouts . | . . . Manual 12 | . 3 9 Terminals 17 | . 5 12 Fabricators . | . . . Repair Stations . | . . . Recycling Units . | . . . Scanalyzers . | . . . Garrison Access . | . . . Terminal Hacks 2 | . . 2 Robot Analysis 1 | . . 1 Alert Level 1 | . . 1 Fabricator Hacks . | . . . Repair Station Hacks . | . . . Recycling Unit Hacks . | . . . Scanalyzer . | . . . Garrison Access Hacks . | . . . Unauthorized Hacks 6 | . . 6 Terminals 6 | . . 6 Assimilate 3 | . . 3 Botnet 3 | . . 3 Fabricators . | . . . Repair Stations . | . . . Recycling Units . | . . . Scanalyzers . | . . . Garrison Access . | . . . Data Cores Recovered . | . . . Used . | . . . Hacking Detections 5 | . 2 3 Full Trace Events 1 | . . 1 Feedback Events . | . . . Feedback Blocked . | . . . Robot Schematics Acquired . | . . . Robots Built . | . . . Authchips . | . . . Time . | . . . Total Robot Build Rating . | . . . Part Schematics Acquired . | . . . Parts Built . | . . . Authchips . | . . . Time . | . . . Total Part Build Rating . | . . . Parts Repaired . | . . . Time . | . . . Parts Recycled . | . . . Recycled Matter . | . . . Retrieved Matter . | . . . Retrieved Components . | . . . Parts Scanalyzed . | . . . Part Schematics Acquired . | . . . Parts Damaged . | . . . Bothacking | -11 -10 -9 ------------ Run | Jun Mat Mat Used RIF Installer . | . . . Robots Hacked . | . . . Non-combat . | . . . Combat . | . . . Robot Hacks Applied . | . . . Relay Couplers Released . | . . . Fabnet Peak Effective % . | . . . Robots Rewired . | . . . Allies Hacked . | . . . Hacks Repelled . | . . . Allies | -11 -10 -9 -------- Run | Jun Mat Mat Total Allies . | . . . Largest Group . | . . . Highest-Rated Group . | . . . Highest-Rated Ally . | . . . Total Orders . | . . . Ally Attacks . | . . . Total Damage . | . . . Kills . | . . . Allies Corrupted . | . . . Allies Melted . | . . . Intel | -11 -10 -9 ------- Run | Jun Mat Mat Robot Analysis Total 1 | . . 1 Derelict Logs Recovered . | . . . Drone Launches . | . . . Drone Recoveries . | . . . Exploration | -11 -10 -9 ------------- Run | Jun Mat Mat Turns Passed 1088 | 78 663 347 Spaces Moved 659 | 49 425 185 Core 1 | 1 . . Treads . | . . . Legs 658 | 48 425 185 Wheels . | . . . Hover . | . . . Flight . | . . . Fastest Speed 50 | 50 120 120 Average Speed 119 | 118 120 120 Slowest Speed 120 | 120 120 120 Overloaded Moves . | . . . Propulsion Burnouts . | . . . Robots Hopped . | . . . Cave-ins Triggered . | . . . Exploration Rate (%) 31 | 4 72 17 Regions Visited 2 Branch Regions . Pre-discovered Areas . | . . . Known Exits Taken . | . . . Unknown Exits Taken 2 | 1 1 . Scrap Searched . | . . . Spaces Dug . | . . . Terrain Destroyed 7 | . . 7 Melee . | . . . Projectile . | . . . AOE 7 | . . 7 Terrain Rammed . | . . . Walls Destroyed . | . . . Machines Disabled . | . . . Actions | -11 -10 -9 --------- Run | Jun Mat Mat Total 827 | 64 506 257 Wait 53 | 2 20 31 Move 657 | 48 424 185 Hop . | . . . Pick Up 17 | 5 9 3 Fast Attach 7 | 6 1 . Attach 7 | . 3 4 Detach . | . . . Swap 10 | 1 5 4 Drop 6 | 1 4 1 Fire 70 | 1 40 29 Melee . | . . . Ram . | . . . Kick . | . . . Crush . | . . . Escape Stasis . | . . . Rewire . | . . . Trap . | . . . Miscellaneous . | . . . Route ------- -11/Junkyard -10/Materials (discovered 4 exits: *Mat x3 / [*Min]) -9/Materials History --------- Turn | Location | Event 18 | -11/Junkyard | Discovered new exit (range 15) 79 | -11/Junkyard | Entered Materials 144 | -10/Materials | Discovered new exit (range 9) 233 | -10/Materials | Discovered new exit (range 5) 304 | -10/Materials | Build established: Mutant 475 | -10/Materials | Discovered new exit (range 16) 690 | -10/Materials | Discovered new exit (range 7) 742 | -10/Materials | Entered another Materials area 742 | -9/Materials | Evolved 2 slots: Propulsion x1, Utility x1 1089 | -9/Materials | Self-destructed Last Messages --------------- 01058_ U-05 Engineer lays Concrete. 01059_ U-05 Engineer builds a Wall. 01059_ K-01 Serf collects debris. 01059_ U-05 Engineer lays Concrete. 01062_ K-01 Serf collects debris. 01063_ U-05 Engineer builds a Wall. 01066_ K-01 Serf collects debris. 01066_ U-05 Engineer lays Concrete. 01069_ K-01 Serf collects debris. 01073_ U-05 Engineer destroyed. 01074_ K-01 Serf collects debris. 01076_ Aluminum Leg destroyed. 01077_ Y-45 Defender heat damages Beam Rifle, Lgt. Treads. 01078_ K-01 Serf collects debris. 01083_ Aluminum Leg destroyed. 01085_ Lgt. Assault Rifle destroyed. 01085_ K-01 Serf collects debris. 01087_ Aluminum Leg destroyed. 01087_ Imp. Ion Engine melted. 01087_ Y-45 Defender destroyed. Map ----- +----------------------------------------------------+ | | | | | | | | | | | | | | | | | | | | | ?????????????????????????????????????????????????? | | ?????????????????????????????????????????????????? | | ??????????##########???????????????#########?????? | | ????####### #???????????????# ?????? | | ##### # #???????????????# """#????? | | # """ #???????????????# """#????? | | T # """"" #???????????????# """#????? | | # """"" #???????????????# #????? | | #+### # """"" #??????########?#"" !#????? | | ### ## """ #??????#]]]]==#?#"T #????? | | #?# ## #??????#]]]]==#?#"" #????? | | #?# ## #??##### #?# #????? | | = #?# #####+############ #######+####????? | | #?# %[! % ###### | | #?# g [k*%%[= # | | #?# @%== t # " | | ####?##############+#######* ###+####### # " | | ?????????????????# # ! !#= # !!=#?# # " | | ?????????????????# # # # !!=#?# # | | ?????????????????# #! / # ! !! #?# + " | | ?????????????????# # !# # ### # " | | ?????????????????# # # # + % # " | | ?????????????????# # # ########### # | | ?????????????????# # # #??????#####+####### | | ?????????????????##### # #??????# #?? | | ?????????????????????# # #??????# T """ #?? | | ?????????????????????###/## /??????# """""#?? | | ???????????????????????? ? #??????# """""#?? | | ???????????????????????? ? #??????# """""#?? | | ???????????????????????? ? #??????# """ #?? | | ???????????????????????? ? #??????# #?? | | ?????????????????????????? #??????# / = #?? | | ?????????????????????????? #??????###########?? | | ?????????????????????????? #??????????????????? | | ?????????????????????????? ???????????????????? | | ?????????????????????????????????????????????????? | | ?????????????????????????????????????????????????? | | ?????????????????????????????????????????????????? | | ?????????????????????????????????????????????????? | | ?????????????????????????????????????????????????? | +----------------------------------------------------+ Best States ------------- Heat Dissipation 42 Energy Generation 14 Energy Capacity 160 Matter Stores 300 Matter Capacity 300 Sight Range 16 Terrain Scan Density 10 Armor Coverage 150 Evasion (%) 55 Targeting Accuracy 5 Item Schematics ----------------- None Robot Schematics ------------------ None Fabricated ------------ Nothing Alien Tech Used ----------------- None Achievements -------------- None Challenges ------------ None Game ------ Seed MiningImpulseShield Manual? 0 Play Time 00:14:34 Cumulative 51.5 hours Start 2023.12.30 @ 13:50:17 End 2023.12.30 @ 14:01:11 Sessions 1 Manual Loads 0 Difficulty Rogue Special Mode None Game No. 57 Rogue 57 Adventurer 0 Explorer 0 Win Type - Total 0 Types 0/0/0/0/0/0/0/0/0 Lore% 30 Gallery% 32 Achievement% 26 Wizard Run 0 Options --------- ASCII 0 Keyboard 1 Movement Numpad Keybinds 1 Fullscreen 1 Font 18/SmallcapsGlow Map View 76x50 Tactical HUD 1 Map Filters NONE Filters NONE Steam 1 RUN: 04a1a42c-7a51-4d62-a6e0-fa4467864141